fUST/lending_fUST_20240429
["ID","MTS","AMOUNT","RATE_DAILY","PERIOD"]
[324830019,1714358851991,-1700.88,0.00013698,2]
[324830020,1714358852011,-500.0,0.00013698,2]
[324830021,1714358852033,-661.81,0.00013698,2]
[324830022,1714358852055,-922.77,0.00013698,2]
[324830023,1714358852075,-508.3,0.00013698,2]
[324830024,1714358852096,-500.0,0.00013698,2]
[324830025,1714358852117,-500.0,0.00013698,2]
[324830026,1714358852138,-500.0,0.00013698,2]
[324830027,1714358852159,-1486.5,0.00013698,2]
[324830028,1714358852179,-500.0,0.00013698,2]
[324830029,1714358852199,-2195.93,0.00013698,2]
[324830030,1714358852220,-500.0,0.00013698,2]
[324830031,1714358852240,-3361.74,0.00013698,2]
[324830032,1714358852260,-292.68277718,0.00013698,2]
[324830033,1714358852280,-2095.27,0.00013698,2]
[324830034,1714358852300,-565.21859299,0.00013698,2]
[324830035,1714358852320,-754.87,0.00013698,2]
[324830036,1714358852341,-500.0,0.00013698,2]
[324830037,1714358852361,-500.0,0.00013698,2]
[324830038,1714358852382,-500.0,0.00013698,2]
[324830039,1714358852405,-1108.68,0.00013698,2]
[324830040,1714358852426,-500.0,0.00013698,2]
[324830041,1714358852448,-500.0,0.00013698,2]
[324830042,1714358852470,-3823.86,0.00013698,2]
[324830043,1714358852492,-500.0,0.00013698,2]
[324830044,1714358852514,-500.0,0.00013698,2]
[324830045,1714358852535,-500.0,0.00013698,2]
[324830046,1714358852557,-500.0,0.00013698,2]
[324830047,1714358852578,-561.92,0.00013698,2]
[324830048,1714358852602,-500.0,0.00013698,2]
[324830049,1714358852622,-201.07386942,0.00013698,2]
[324830050,1714358852642,-873.04,0.00013698,2]
[324830051,1714358852662,-500.0,0.00013698,2]
[324830052,1714358852683,-500.0,0.00013698,2]
[324830053,1714358852703,-12693.40303649,0.00013698,2]
[324830054,1714358904369,564.97951661,9.999e-05,2]
[324830055,1714358952142,-727.56253883,0.00013598,2]
[324830056,1714358952161,-334.19114126,0.00013696,2]
[324830057,1714358952181,-300.0,0.00013697,2]
[324830058,1714358952203,-300.0,0.00013697,2]
[324830059,1714358952224,-500.0,0.00013698,2]
[324830060,1714358952244,-500.0,0.00013698,2]
[324830061,1714358952264,-2945.2,0.00013698,2]
[324830062,1714358952284,-500.0,0.00013698,2]
[324830063,1714358952303,-599.61,0.00013698,2]
[324830064,1714358952322,-779.4,0.00013698,2]
[324830065,1714358952342,-2380.6,0.00013698,2]
[324830066,1714358952361,-265.92225647,0.00013698,2]
[324830067,1714358954095,-1469.09774353,0.00013698,2]
[324830068,1714358954114,-500.0,0.00013698,2]
[324830069,1714358954134,-500.0,0.00013698,2]
[324830070,1714358954156,-500.0,0.00013698,2]
[324830071,1714358954176,-720.41,0.00013698,2]
[324830072,1714358954198,-652.26,0.00013698,2]
[324830073,1714358954217,-500.0,0.00013698,2]
[324830074,1714358954238,-500.0,0.00013698,2]
[324830075,1714358954258,-500.0,0.00013698,2]
[324830076,1714358954279,-500.0,0.00013698,2]
[324830077,1714358954298,-500.0,0.00013698,2]
[324830078,1714358954318,-547.3,0.00013698,2]
[324830079,1714358954338,-500.0,0.00013698,2]
[324830080,1714358954357,-502.33289745,0.00013698,2]
[324830081,1714358954376,-500.0,0.00013698,2]
[324830082,1714358954397,-1391.25,0.00013698,2]
[324830083,1714358954417,-500.0,0.00013698,2]
[324830084,1714358954439,-500.0,0.00013698,2]
[324830085,1714358954459,-500.0,0.00013698,2]
[324830086,1714358954480,-724.4,0.00013698,2]
[324830087,1714358954500,-500.0,0.00013698,2]
[324830088,1714358954519,-500.0,0.00013698,2]
[324830089,1714358954540,-5138.44,0.00013698,2]
[324830090,1714358954560,-500.0,0.00013698,2]
[324830091,1714358954583,-1186.19,0.00013698,2]
[324830092,1714358954604,-13565.45,0.00013698,2]
[324830093,1714358954626,-500.0,0.00013698,2]
[324830094,1714358954648,-584.71,0.00013698,2]
[324830095,1714358954668,-500.0,0.00013698,2]
[324830096,1714358954690,-500.0,0.00013698,2]
[324830097,1714358954711,-500.0,0.00013698,2]
[324830098,1714358954732,-500.0,0.00013698,2]
[324830099,1714358954753,-500.0,0.00013698,2]
[324830100,1714358954773,-484.46381902,0.00013698,2]
[324830101,1714358954819,-15.53618098,0.00013698,2]
[324830102,1714358954840,-500.0,0.00013698,2]
[324830103,1714358954861,-641.23,0.00013698,2]
[324830104,1714358954883,-11201.52,0.00013698,2]
[324830105,1714358954904,-2695.1,0.00013698,2]
[324830106,1714358954925,-500.0,0.00013698,2]
[324830107,1714358954947,-500.0,0.00013698,2]
[324830108,1714358954967,-500.0,0.00013698,2]
[324830109,1714358954987,-288.39032908,0.00013698,2]
[324830110,1714358955008,-500.0,0.00013698,2]
[324830111,1714358955029,-1131.21,0.00013698,2]
[324830112,1714358955050,-500.0,0.00013698,2]
[324830113,1714358955075,-500.0,0.00013698,2]
[324830114,1714358955096,-500.0,0.00013698,2]
[324830115,1714358955116,-500.0,0.00013698,2]
[324830116,1714358955143,-500.0,0.00013698,2]
[324830117,1714358955168,-616.98458286,0.00013698,2]
[324830118,1714358955190,-587.73608665,0.00013698,2]
[324830119,1714358955209,-500.0,0.00013698,2]
[324830120,1714358955230,-500.0,0.00013698,2]
[324830121,1714358955250,-500.0,0.00013698,2]
[324830122,1714358955272,-500.0,0.00013698,2]
[324830123,1714358955292,-555.76,0.00013698,2]
[324830124,1714358955312,-504.21956918,0.00013698,2]
[324830125,1714358955332,-500.0,0.00013698,2]
[324830126,1714358955354,-500.0,0.00013698,2]
[324830127,1714358955374,-1000.0,0.00013698,2]
[324830128,1714358955395,-500.0,0.00013698,2]
[324830129,1714358955415,-500.0,0.00013698,2]
[324830130,1714358955438,-938.2,0.00013698,2]
[324830131,1714358955460,-500.0,0.00013698,2]
[324830132,1714358955480,-500.0,0.00013698,2]
[324830133,1714358955502,-974.82,0.00013698,2]
[324830134,1714358955523,-500.0,0.00013698,2]
[324830135,1714358955544,-3713.64,0.00013698,2]
[324830136,1714358955563,-500.0,0.00013698,2]
[324830137,1714358955584,-1434.29,0.00013698,2]
[324830138,1714358955605,-375.69011241,0.00013698,2]
[324830139,1714358955625,-519.81,0.00013698,2]
[324830140,1714358955645,-500.0,0.00013698,2]
[324830141,1714358955665,-500.0,0.00013698,2]
[324830142,1714358955689,-5230.14,0.00013698,2]
[324830143,1714358955708,-500.0,0.00013698,2]
[324830144,1714358955729,-2365.98,0.00013698,2]
[324830145,1714358955750,-500.0,0.00013698,2]
[324830146,1714358955771,-500.0,0.00013698,2]
[324830147,1714358955791,-761.6,0.00013698,2]
[324830148,1714358955812,-8532.22,0.00013698,2]
[324830149,1714358955832,-1257.36,0.00013698,2]
[324830150,1714358955854,-500.0,0.00013698,2]
[324830151,1714358955874,-500.0,0.00013698,2]
[324830152,1714358955894,-500.0,0.00013698,2]
[324830153,1714358955914,-500.0,0.00013698,2]
[324830154,1714358955935,-500.0,0.00013698,2]
[324830155,1714358955956,-7.00055942,0.00013698,2]
[324830156,1714358964224,-765.11944058,0.00013698,2]
[324830157,1714358964243,-884.33,0.00013698,2]
[324830158,1714358964263,-4521.67,0.00013698,2]
[324830159,1714358964283,-1069.32,0.00013698,2]
[324830160,1714358964303,-783.5,0.00013698,2]
[324830161,1714358964324,-500.0,0.00013698,2]
[324830162,1714358964344,-500.0,0.00013698,2]
[324830163,1714358964363,-500.0,0.00013698,2]
[324830164,1714358964383,-500.0,0.00013698,2]
[324830165,1714358964402,-367.03627452,0.00013698,2]
[324830166,1714358964422,-500.0,0.00013698,2]
[324830167,1714358964441,-190.73721849,0.00013698,2]
[324830168,1714358964466,-500.0,0.00013698,2]
[324830169,1714358964485,-500.0,0.00013698,2]
[324830170,1714358964505,-500.0,0.00013698,2]
[324830171,1714358964524,-500.0,0.00013698,2]
[324830172,1714358964544,-500.0,0.00013698,2]
[324830173,1714358964564,-3221.67,0.00013698,2]
[324830174,1714358964584,-983.72,0.00013698,2]
[324830175,1714358964603,-500.0,0.00013698,2]
[324830176,1714358964624,-500.0,0.00013698,2]
[324830177,1714358964644,-500.0,0.00013698,2]
[324830178,1714358964666,-500.0,0.00013698,2]
[324830179,1714358964686,-500.0,0.00013698,2]
[324830180,1714358964708,-500.0,0.00013698,2]
[324830181,1714358964728,-500.0,0.00013698,2]
[324830182,1714358964747,-500.0,0.00013698,2]
[324830183,1714358964767,-723.41,0.00013698,2]
[324830184,1714358964787,-500.0,0.00013698,2]
[324830185,1714358964809,-513.20751408,0.00013698,2]
[324830186,1714358964832,-500.0,0.00013698,2]
[324830187,1714358964852,-500.0,0.00013698,2]
[324830188,1714358964871,-500.0,0.00013698,2]
[324830189,1714358964891,-208.32637695,0.00013698,2]
[324830190,1714358964912,-500.0,0.00013698,2]
[324830191,1714358964932,-1062.48,0.00013698,2]
[324830192,1714358964954,-500.0,0.00013698,2]
[324830193,1714358964973,-500.0,0.00013698,2]
[324830194,1714358964992,-500.0,0.00013698,2]
[324830195,1714358965012,-500.0,0.00013698,2]
[324830196,1714358965032,-535.7,0.00013698,2]
[324830197,1714358965053,-500.0,0.00013698,2]
[324830198,1714358965076,-500.0,0.00013698,2]
[324830199,1714358965095,-705.79,0.00013698,2]
[324830200,1714358965115,-500.0,0.00013698,2]
[324830201,1714358965136,-634.23,0.00013698,2]
[324830202,1714358965157,-500.0,0.00013698,2]
[324830203,1714358965175,-500.0,0.00013698,2]
[324830204,1714358965195,-1424.57,0.00013698,2]
[324830205,1714358965216,-634.2946038,0.00013698,2]
[324830206,1714358965236,-837.96,0.00013698,2]
[324830207,1714358965254,-500.0,0.00013698,2]
[324830208,1714358965273,-500.0,0.00013698,2]
[324830209,1714358965293,-530.49,0.00013698,2]
[324830210,1714358965311,-500.0,0.00013698,2]
[324830211,1714358965331,-500.0,0.00013698,2]
[324830212,1714358965350,-14654.55,0.00013698,2]
[324830213,1714358965370,-500.0,0.00013698,2]
[324830214,1714358965389,-500.0,0.00013698,2]
[324830215,1714358965409,-500.0,0.00013698,2]
[324830216,1714358965430,-500.0,0.00013698,2]
[324830217,1714358965451,-500.0,0.00013698,2]
[324830218,1714358965471,-500.0,0.00013698,2]
[324830219,1714358965491,-500.0,0.00013698,2]
[324830220,1714358965511,-636.93,0.00013698,2]
[324830221,1714358965530,-785.8,0.00013698,2]
[324830222,1714358965550,-1080.19,0.00013698,2]
[324830223,1714358965569,-524.49,0.00013698,2]
[324830224,1714358965591,-500.0,0.00013698,2]
[324830225,1714358965610,-187.56271,0.00013699,2]
[324830226,1714358965630,-166.666666,0.00013699,2]
[324830227,1714358965649,-161.76384467,0.00013866,2]
[324830228,1714358965669,-500.0,0.00013971,3]
[324830229,1714358965689,-500.0,0.00013971,3]
[324830230,1714358965710,-309.49379544,0.00013972,3]
[324830231,1714358965729,-538.91,0.00013972,3]
[324830232,1714358965750,-500.0,0.00013972,3]
[324830233,1714358965770,-1147.51,0.00013972,3]
[324830234,1714358965789,-590.06598449,0.00013972,3]
[324830235,1714358965809,-987.22,0.00013972,3]
[324830236,1714358965830,-829.21,0.00013972,3]
[324830237,1714358965850,-500.0,0.00013972,3]
[324830238,1714358965869,-500.0,0.00013972,3]
[324830239,1714358965889,-763.24,0.00013972,3]
[324830240,1714358965909,-666.41,0.00013972,3]
[324830241,1714358965929,-198.91,0.00013972,3]
[324830242,1714358965951,-500.0,0.00013972,2]
[324830243,1714358965970,-1496.77,0.00013972,3]
[324830244,1714358965990,-500.0,0.00013972,3]
[324830245,1714358966010,-1246.08711287,0.00013972,3]
[324830262,1714359033936,-2025.832372,0.00012979,2]
[324830286,1714359034410,-315.85899076,0.00012979,2]
[324830287,1714359034421,-1587.38173877,0.00012979,2]
[324830358,1714359039306,-725.00000007,0.00012979,2]
[324830359,1714359039317,-16579.73266999,0.00012979,2]
[324830360,1714359039329,-251.82,0.00012979,2]
[324830361,1714359039340,-3414.37422841,0.00012979,2]
[324830362,1714359039350,-300.0,0.00013697,2]
[324830363,1714359039359,-256.92199987,0.00013697,2]
[324830391,1714359041467,-43.07800013,0.00013697,2]
[324830392,1714359041477,-595.94,0.00013698,2]
[324830393,1714359041487,-508.98,0.00013698,2]
[324830394,1714359041496,-694.22,0.00013698,2]
[324830395,1714359041507,-1333.28,0.00013698,2]
[324830396,1714359041520,-131.35852618,0.00013698,2]
[324830397,1714359041531,-368.64147382,0.00013698,2]
[324830398,1714359041539,-500.0,0.00013698,2]
[324830399,1714359041548,-151.0,0.00013698,2]
[324830400,1714359041557,-500.0,0.00013698,2]
[324830401,1714359041566,-500.0,0.00013698,2]
[324830402,1714359041575,-500.0,0.00013698,2]
[324830403,1714359041584,-2822.48,0.00013698,2]
[324830404,1714359041593,-500.0,0.00013698,2]
[324830405,1714359041602,-500.0,0.00013698,2]
[324830406,1714359041611,-500.0,0.00013698,2]
[324830407,1714359041620,-5336.07383387,0.00013698,2]
[324830490,1714359044649,-1613.5,0.00013698,2]
[324830609,1714359092870,718.54795119,9.999e-05,2]
[324830610,1714359950474,-186.10688455,0.00012326,2]
[324830611,1714360011815,718.54795119,9.999e-05,2]
[324830612,1714360028171,-122.53547276,0.00012326,2]
[324830613,1714360028193,-755.18217561,0.00012461,2]
[324830614,1714360030212,-1136.51141569,0.00012461,2]
[324830615,1714360030233,-300.0,0.00012462,2]
[324830616,1714360030253,-300.0,0.00012462,2]
[324830617,1714360030274,-4219.88300026,0.00012463,2]
[324830618,1714360031126,-20680.11699974,0.00012463,2]
[324830619,1714360031146,-167.34598316,0.00012911,2]
[324830620,1714360031165,-154.79876161,0.00013011,2]
[324830621,1714360031186,-167.34598316,0.0001314,2]
[324830622,1714360031205,-167.34598316,0.00013369,2]
[324830623,1714360031225,-167.34598316,0.00013598,2]
[324830624,1714360031245,-3165.50775648,0.00013598,2]
[324830625,1714360031264,-919.41140399,0.00013598,2]
[324830626,1714360031284,-420.0,0.00013675,2]
[324830627,1714360031304,-5000.0,0.00013696,2]
[324830628,1714360031326,-409.95152512,0.00013696,2]
[324830629,1714360031348,-1255.16360998,0.00013696,2]
[324830630,1714360031368,-722.99331126,0.00013696,2]
[324830631,1714360031389,-432.63906924,0.00013697,2]
[324830632,1714360031416,-264.85045456,0.00013697,2]
[324830633,1714360151247,-288.55356627,0.00013011,2]
[324830634,1714360151267,-1897.01789861,0.00013696,2]
[324830635,1714360151287,-300.0,0.00013696,2]
[324830636,1714360151306,-300.0,0.00013696,2]
[324830637,1714360151325,-1751.74173623,0.00013697,2]
[324830638,1714360151344,-6035.19137579,0.00013697,2]
[324830639,1714360151362,-500.0,0.00013698,2]
[324830640,1714360151384,-500.0,0.00013698,2]
[324830641,1714360151403,-573.62268151,0.00013698,2]
[324830642,1714360151424,-500.01281628,0.00013698,2]
[324830643,1714360151443,-1953.48,0.00013698,2]
[324830644,1714360151463,-500.0,0.00013698,2]
[324830645,1714360151483,-500.0,0.00013698,2]
[324830646,1714360151502,-637.78,0.00013698,2]
[324830647,1714360151521,-500.0,0.00013698,2]
[324830648,1714360151540,-734.01,0.00013698,2]
[324830649,1714360151559,-801.09,0.00013698,2]
[324830650,1714360151577,-500.0,0.00013698,2]
[324830651,1714360151596,-500.0,0.00013698,2]
[324830652,1714360151615,-500.0,0.00013698,2]
[324830653,1714360151633,-500.0,0.00013698,2]
[324830654,1714360151652,-515.74929586,0.00013698,2]
[324830655,1714360151673,-746.77,0.00013698,2]
[324830656,1714360151692,-500.0,0.00013698,2]
[324830657,1714360151712,-500.0,0.00013698,2]
[324830658,1714360151732,-500.0,0.00013698,2]
[324830659,1714360151751,-500.0,0.00013698,2]
[324830660,1714360151771,-375.85116075,0.00013698,2]
[324830661,1714360151790,-500.0,0.00013698,2]
[324830662,1714360151810,-500.0,0.00013698,2]
[324830663,1714360151829,-500.0,0.00013698,2]
[324830664,1714360151848,-500.0,0.00013698,2]
[324830665,1714360151867,-500.0,0.00013698,2]
[324830666,1714360151886,-500.0,0.00013698,2]
[324830667,1714360151905,-500.0,0.00013698,2]
[324830668,1714360151925,-500.0,0.00013698,2]
[324830669,1714360151944,-926.16,0.00013698,2]
[324830670,1714360151963,-500.0,0.00013698,2]
[324830671,1714360151982,-500.0,0.00013698,2]
[324830672,1714360152002,-500.0,0.00013698,3]
[324830673,1714360152021,-500.0,0.00013698,2]
[324830674,1714360152041,-500.0,0.00013698,4]
[324830675,1714360152061,-500.0,0.00013698,5]
[324830676,1714360152082,-633.08727753,0.00013698,2]
[324830677,1714360152101,-500.0,0.00013698,2]
[324830678,1714360152120,-500.0,0.00013698,2]
[324830679,1714360152139,-500.0,0.00013698,2]
[324830680,1714360152158,-1544.81,0.00013698,2]
[324830681,1714360152178,-500.0,0.00013698,2]
[324830682,1714360152197,-500.0,0.00013698,2]
[324830683,1714360152216,-504.87848749,0.00013698,2]
[324830684,1714360152235,-500.0,0.00013698,2]
[324830685,1714360152254,-1261.68,0.00013698,2]
[324830686,1714360152272,-500.0,0.00013698,2]
[324830687,1714360152291,-500.0,0.00013698,3]
[324830688,1714360152310,-500.0,0.00013698,4]
[324830689,1714360152330,-500.0,0.00013698,5]
[324830690,1714360152351,-500.0,0.00013698,2]
[324830691,1714360152370,-500.0,0.00013698,2]
[324830692,1714360152393,-500.0,0.00013698,2]
[324830693,1714360152413,-500.0,0.00013698,2]
[324830694,1714360152565,-778.84,0.00013698,2]
[324830695,1714360152595,-500.0,0.00013698,2]
[324830696,1714360152635,-500.0,0.00013698,2]
[324830697,1714360152654,-500.0,0.00013698,2]
[324830698,1714360152676,-500.0,0.00013698,2]
[324830699,1714360152695,-500.0,0.00013698,2]
[324830700,1714360152725,-410.47601785,0.00013698,2]
[324830701,1714360152750,-500.0,0.00013698,2]
[324830702,1714360152771,-500.0,0.00013698,2]
[324830703,1714360152794,-500.0,0.00013698,2]
[324830704,1714360152815,-500.0,0.00013698,2]
[324830705,1714360152837,-500.0,0.00013698,2]
[324830706,1714360152857,-1520.26,0.00013698,2]
[324830707,1714360152879,-968.92,0.00013698,2]
[324830708,1714360152903,-435.6600224,0.00013698,2]
[324830709,1714360152924,-500.0,0.00013698,2]
[324830710,1714360152944,-507.89751234,0.00013698,2]
[324830711,1714360152964,-500.0,0.00013698,2]
[324830712,1714360152984,-500.0,0.00013698,2]
[324830713,1714360153005,-500.0,0.00013698,2]
[324830714,1714360153025,-749.13,0.00013698,2]
[324830715,1714360153046,-500.0,0.00013698,2]
[324830716,1714360153067,-500.0,0.00013698,2]
[324830717,1714360153088,-501.34807716,0.00013698,2]
[324830718,1714360153108,-840.23,0.00013698,2]
[324830719,1714360153128,-522.81,0.00013698,2]
[324830720,1714360153148,-1804.78,0.00013698,2]
[324830721,1714360153170,-500.0,0.00013698,2]
[324830722,1714360153190,-500.0,0.00013698,2]
[324830723,1714360153209,-500.80871262,0.00013698,2]
[324830724,1714360153228,-945.81,0.00013698,2]
[324830725,1714360153248,-500.15840844,0.00013698,2]
[324830726,1714360153267,-500.0,0.00013698,2]
[324830727,1714360153286,-565.44007342,0.00013698,2]
[324830728,1714360153305,-500.0,0.00013698,2]
[324830729,1714360153325,-500.0,0.00013698,2]
[324830730,1714360153345,-500.0,0.00013698,2]
[324830731,1714360153365,-504.10150551,0.00013698,2]
[324830732,1714360153389,-500.0,0.00013698,2]
[324830733,1714360153411,-283.54768481,0.00013698,2]
[324830734,1714360153432,-500.0,0.00013698,2]
[324830735,1714360153454,-500.0,0.00013698,2]
[324830736,1714360153473,-500.0,0.00013698,2]
[324830737,1714360153492,-500.0,0.00013698,2]
[324830738,1714360153512,-500.0,0.00013698,2]
[324830739,1714360153533,-228.88382865,0.00013698,2]
[324830740,1714360153553,-500.0,0.00013698,2]
[324830741,1714360153574,-500.41232546,0.00013698,2]
[324830742,1714360153594,-500.0,0.00013698,2]
[324830743,1714360153613,-504.21422262,0.00013698,2]
[324830744,1714360153635,-268.82509237,0.00013698,2]
[324830745,1714360153656,-502.95818122,0.00013698,2]
[324830746,1714360153678,-500.0,0.00013698,2]
[324830747,1714360153699,-500.0,0.00013698,2]
[324830748,1714360153719,-500.0,0.00013698,2]
[324830749,1714360153740,-532.45,0.00013698,2]
[324830750,1714360153761,-863.55,0.00013698,2]
[324830751,1714360153783,-500.0,0.00013698,2]
[324830752,1714360153803,-500.0,0.00013698,2]
[324830753,1714360153823,-500.0,0.00013698,2]
[324830754,1714360153844,-504.24236024,0.00013698,2]
[324830755,1714360153864,-500.0,0.00013698,2]
[324830756,1714360153885,-500.0,0.00013698,2]
[324830757,1714360153907,-749.33,0.00013698,2]
[324830758,1714360153930,-500.0,0.00013698,2]
[324830759,1714360153951,-864.24,0.00013698,2]
[324830760,1714360153972,-500.0,0.00013698,2]
[324830761,1714360153992,-500.0,0.00013698,2]
[324830762,1714360154012,-532.45,0.00013698,2]
[324830763,1714360154032,-1084.19,0.00013698,2]
[324830764,1714360154054,-663.98,0.00013698,2]
[324830765,1714360154075,-500.0,0.00013698,2]
[324830766,1714360154095,-663.98,0.00013698,3]
[324830767,1714360154114,-663.98,0.00013698,4]
[324830768,1714360154134,-500.0,0.00013698,2]
[324830769,1714360154153,-500.0,0.00013698,2]
[324830770,1714360154177,-500.0,0.00013698,2]
[324830771,1714360154198,-500.0,0.00013698,2]
[324830772,1714360154218,-500.0,0.00013698,2]
[324830773,1714360154238,-500.0,0.00013698,2]
[324830774,1714360154258,-602.65,0.00013698,2]
[324830775,1714360154277,-500.0,0.00013698,2]
[324830776,1714360154296,-500.0,0.00013698,2]
[324830777,1714360154316,-500.0,0.00013698,2]
[324830778,1714360154336,-500.0,0.00013698,2]
[324830779,1714360154358,-661.45,0.00013698,2]
[324830780,1714360154381,-247.69764059,0.00013698,2]
[324830781,1714360154402,-515.53975195,0.00013698,2]
[324830782,1714360154425,-500.0,0.00013698,2]
[324830783,1714360154446,-500.0,0.00013698,2]
[324830784,1714360154467,-500.0,0.00013698,2]
[324830785,1714360154486,-500.0,0.00013698,2]
[324830786,1714360154506,-500.0,0.00013698,2]
[324830787,1714360154526,-500.0,0.00013698,2]
[324830788,1714360154545,-685.35,0.00013698,2]
[324830789,1714360154564,-2025.24,0.00013698,2]
[324830790,1714360154584,-500.0,0.00013698,2]
[324830791,1714360154604,-645.01634481,0.00013698,2]
[324830792,1714360154625,-500.0,0.00013698,2]
[324830793,1714360154646,-507.51907546,0.00013698,2]
[324830794,1714360154666,-500.0,0.00013698,2]
[324830795,1714360154686,-502.48696637,0.00013698,2]
[324830796,1714360154706,-500.0,0.00013698,2]
[324830797,1714360154726,-500.0,0.00013698,2]
[324830798,1714360154746,-500.0,0.00013698,2]
[324830799,1714360154768,-500.0,0.00013698,2]
[324830800,1714360154787,-500.0,0.00013698,2]
[324830801,1714360154807,-698.98,0.00013698,2]
[324830802,1714360154827,-500.0,0.00013698,2]
[324830803,1714360154846,-500.0,0.00013698,2]
[324830804,1714360154865,-500.0,0.00013698,2]
[324830805,1714360154885,-500.0,0.00013698,2]
[324830806,1714360154905,-606.01796656,0.00013698,2]
[324830807,1714360155050,-500.0,0.00013698,2]
[324830808,1714360155071,-2244.94,0.00013698,2]
[324830809,1714360155092,-614.3,0.00013698,2]
[324830810,1714360155110,-593.39466437,0.00013698,2]
[324830811,1714360155130,-500.0,0.00013698,2]
[324830812,1714360155148,-500.0,0.00013698,2]
[324830813,1714360155169,-500.0,0.00013698,2]
[324830814,1714360155190,-500.0,0.00013698,2]
[324830815,1714360155210,-500.0,0.00013698,2]
[324830816,1714360155231,-500.0,0.00013698,2]
[324830817,1714360155252,-500.0,0.00013698,2]
[324830818,1714360155272,-1066.43,0.00013698,2]
[324830819,1714360155291,-507.32802336,0.00013698,2]
[324830820,1714360155311,-500.0,0.00013698,2]
[324830821,1714360155331,-500.0,0.00013698,2]
[324830822,1714360155351,-500.0,0.00013698,2]
[324830823,1714360155372,-500.0,0.00013698,2]
[324830824,1714360155395,-500.0,0.00013698,2]
[324830825,1714360155415,-500.0,0.00013698,2]
[324830826,1714360155435,-211.60967092,0.00013698,2]
[324830827,1714360155454,-47.14357418,0.00013698,2]
[324830828,1714360156172,443.228487,0.000128,2]
[324830829,1714360160130,-452.85642582,0.00013698,2]
[324830830,1714360160153,-500.0,0.00013698,2]
[324830831,1714360160185,-1381.75,0.00013698,2]
[324830832,1714360160209,-224.59286858,0.00013698,2]
[324830833,1714360160232,-500.0,0.00013698,2]
[324830834,1714360160255,-500.0,0.00013698,2]
[324830835,1714360160277,-500.0,0.00013698,2]
[324830836,1714360160300,-949.74,0.00013698,2]
[324830837,1714360160321,-797.74,0.00013698,2]
[324830838,1714360160341,-500.0,0.00013698,2]
[324830839,1714360160361,-500.0,0.00013698,2]
[324830840,1714360160385,-500.0,0.00013698,2]
[324830841,1714360160404,-530.81760426,0.00013698,2]
[324830842,1714360160430,-500.0,0.00013698,2]
[324830843,1714360160450,-500.0,0.00013698,2]
[324830844,1714360160469,-500.0,0.00013698,2]
[324830845,1714360160490,-500.0,0.00013698,2]
[324830846,1714360160510,-500.0,0.00013698,2]
[324830847,1714360160529,-504.19712216,0.00013698,2]
[324830848,1714360160549,-500.0,0.00013698,2]
[324830849,1714360160568,-500.0,0.00013698,2]
[324830850,1714360160590,-500.0,0.00013698,2]
[324830851,1714360160610,-500.0,0.00013698,2]
[324830852,1714360160630,-500.0,0.00013698,2]
[324830853,1714360160650,-500.0,0.00013698,2]
[324830854,1714360160803,-500.0,0.00013698,2]